bitfinex-derivatives/quotes_ETHF0:USTF0_20250309
["timestamp","ask_amount","ask_price","bid_price","bid_amount"]
[1741539236489,3.2078,2050.6,2050.4,7.27688251]
[1741539236678,4.18334,2050.5,2050.4,7.27688251]
[1741539237283,7.2078,2050.5,2049.3,21.9]
[1741539237489,3.2078,2050.0,2049.5,0.97598]
[1741539237790,0.97587,2049.9,2049.5,0.976]
[1741539237991,3.2078,2050.0,2049.3,21.9]
[1741539238184,3.2078,2049.6,2049.3,21.9]
[1741539238693,3.2078,2049.6,2049.5,0.97602]
[1741539238886,3.2078,2049.6,2049.3,21.9]
[1741539238887,0.00732368,2049.7,2049.3,21.9]
[1741539239078,0.00732368,2049.7,2049.6,0.97597]
[1741539239392,3.2078,2050.1,2049.9,0.9758]
[1741539239591,3.2078,2050.1,2050.0,0.97578]
[1741539239882,3.2078,2050.1,2049.9,0.97581]
[1741539240085,3.2078,2050.1,2049.5,2.44005]
[1741539240286,3.2078,2050.5,2050.4,0.97559]
[1741539240684,3.2078,2050.5,2050.2,0.00732368]
[1741539240981,3.2078,2050.5,2049.3,7.8519]
[1741539240982,3.2078,2050.5,2049.4,21.899]
[1741539241377,4.18359,2050.0,2049.7,0.9759]
[1741539241579,5.25888451,2050.9,2049.4,5.31181833]
[1741539241580,3.2078,2050.4,2049.4,5.31181833]
[1741539241885,3.2078,2050.4,2049.5,6.42792527]
[1741539242193,3.2078,2050.4,2050.3,0.97564]
[1741539242484,8.46668451,2050.9,2050.8,0.9754]
[1741539242788,5.25888451,2050.9,2050.5,21.897]
[1741539242990,5.25888451,2050.8,2050.5,25.1048]
[1741539243189,6.89210161,2051.0,2050.9,0.97535]
[1741539243489,0.00732368,2051.1,2050.9,8.18315]
[1741539243789,8.40528202,2051.2,2050.7,0.00732368]
[1741539243985,7.42749202,2051.2,2051.1,0.97526]
[1741539244888,5.23930626,2051.2,2051.1,0.97526]
[1741539245086,3.2078,2051.9,2051.8,0.97492]
[1741539245389,3.15599578,2052.9,2051.7,14.57741067]
[1741539245390,3.2078,2052.4,2051.7,14.57741067]
[1741539245784,3.2078,2051.9,2051.7,14.57741067]
[1741539246086,3.2078,2051.9,2051.8,0.97492]
[1741539246288,3.2078,2051.9,2051.7,14.57741067]
[1741539246486,0.97492,2051.8,2051.7,14.57741067]
[1741539246685,0.97492,2051.8,2051.7,4.25741067]
[1741539247091,0.97497,2051.7,2051.6,0.00732368]
[1741539247394,3.2078,2051.9,2051.6,0.00732368]
[1741539248091,3.2078,2052.2,2051.7,3.2078]
[1741539248295,0.9747,2052.3,2051.7,3.2078]
[1741539248592,3.2078,2052.5,2051.6,0.00732368]
[1741539248789,0.97474,2052.2,2051.9,0.97486]
[1741539248992,2.43627,2052.7,2051.6,0.00732368]
[1741539248993,3.2078,2052.0,2051.6,0.00732368]
[1741539249187,4.18277,2051.7,2051.6,0.00732368]
[1741539249795,4.18277,2051.7,2051.6,3.68e-06]
[1741539250594,8.60631102,2051.7,2051.6,3.68e-06]
[1741539250897,4.60631102,2051.7,2051.6,3.68e-06]
[1741539251095,4.93999781,2051.7,2051.6,3.68e-06]
[1741539251291,5.6195298,2051.7,2051.6,3.68e-06]
[1741539251691,1.10307301,2051.7,2051.6,4.97502368]
[1741539251898,0.00732368,2051.9,2051.7,0.97495]
[1741539252085,0.00732368,2051.9,2051.8,0.97492]
[1741539252492,3.21512368,2051.9,2051.7,21.885]
[1741539252690,0.97492,2051.8,2051.7,21.885]
[1741539252886,7.21512368,2051.9,2051.6,3.68e-06]
[1741539253090,0.97497,2051.7,2051.6,3.68e-06]
[1741539253305,0.97535,2050.9,2050.8,21.885]
[1741539253493,3.2078,2050.9,2050.8,21.885]
[1741539253897,3.2078,2050.9,2050.8,22.8604]
[1741539254292,3.2078,2051.5,2051.3,0.97513]
[1741539254597,3.2078,2051.5,2051.4,0.97511]
[1741539254897,0.98222368,2051.9,2051.6,0.97501]
[1741539255101,3.2078,2051.8,2051.7,0.97496]
[1741539255301,3.2078,2051.8,2051.1,2.43815]
[1741539255502,0.00732368,2051.9,2051.8,0.97492]
[1741539255805,0.00732368,2051.9,2051.6,0.975]
[1741539255806,0.98223368,2051.9,2051.6,0.975]
[1741539256009,4.18277,2051.7,2051.6,0.00732368]
[1741539256298,5.65589597,2051.7,2051.6,3.68e-06]
[1741539256602,10.7644179,2051.7,2051.6,3.68e-06]
[1741539257001,0.97561,2050.4,2050.1,0.97572]
[1741539257207,10.36795355,2051.7,2049.8,21.88]
[1741539257208,0.97575,2050.1,2049.8,21.88]
[1741539257409,3.2078,2049.9,2049.8,22.85586]
[1741539257601,0.97576,2050.1,2049.8,22.85587]
[1741539257800,3.2078,2050.5,2049.8,21.88]
[1741539258103,3.93171918,2050.8,2050.0,2.43946]
[1741539258313,0.00732368,2050.4,2050.3,0.97564]
[1741539258604,0.00732368,2050.4,2049.9,0.00732368]
[1741539258902,0.33616984,2050.3,2049.9,0.00732368]
[1741539259206,4.18358,2050.0,2049.9,0.00732368]
[1741539259408,5.66165,2050.0,2049.9,0.00732368]
[1741539259701,5.66165,2050.0,2049.9,3.68e-06]
[1741539259702,10.75689533,2050.0,2049.9,3.68e-06]
[1741539259902,5.78111533,2050.0,2049.9,3.68e-06]
[1741539260100,4.63934686,2050.0,2049.9,3.68e-06]
[1741539260508,5.61512686,2050.0,2049.9,3.68e-06]
[1741539260705,1.43154686,2050.0,2049.9,3.68e-06]
[1741539260906,0.75802727,2050.0,2049.9,4.97583368]
[1741539261103,0.42172574,2050.0,2049.9,3.68e-06]
[1741539261409,3.2078,2050.2,2049.9,3.68e-06]
[1741539261704,3.2078,2050.2,2050.0,0.97575]
[1741539261911,3.2078,2050.2,2050.1,0.97573]
[1741539262111,0.97578,2050.0,2049.9,21.88200368]
[1741539262313,2.44677823,2050.0,2049.9,3.68e-06]
[1741539262503,6.44677823,2050.0,2049.9,3.68e-06]
[1741539262801,3.54021275,2050.0,2049.9,3.68e-06]
[1741539263003,2.56443275,2050.0,2049.9,3.68e-06]
[1741539263198,6.94206495,2050.0,2049.9,3.68e-06]
[1741539263403,3.51847968,2050.0,2049.9,3.68e-06]
[1741539263602,1.42932977,2050.0,2049.9,4.00000368]
[1741539263807,0.00732368,2050.4,2050.3,0.97564]
[1741539264102,3.2078,2051.6,2051.4,0.97507]
[1741539264303,3.2078,2051.6,2050.9,2.43835]
[1741539264304,0.33585968,2051.5,2050.9,12.61598462]
[1741539264605,3.2078,2051.9,2050.9,12.61598462]
[1741539264803,3.2078,2051.7,2050.9,12.61598462]
[1741539265106,3.2078,2051.4,2051.1,0.00732368]
[1741539265506,0.97521,2051.2,2051.1,0.00732368]
[1741539265701,0.00732368,2051.5,2051.1,0.00732368]
[1741539266110,0.97519,2051.3,2051.1,0.00732368]
[1741539266404,0.00732368,2051.5,2051.1,0.00732368]
[1741539266901,0.98241368,2051.5,2051.1,0.00732368]
[1741539267101,0.00732368,2051.5,2051.1,0.98257368]
[1741539267306,3.21512368,2051.5,2051.1,0.00732368]
[1741539267510,0.9752,2051.3,2051.1,0.00732368]
[1741539267810,0.00732368,2051.5,2051.4,0.97511]
[1741539268104,0.00732368,2051.5,2051.1,2.44546368]
[1741539268105,0.00732368,2051.5,2051.1,0.00732368]
[1741539268609,0.00732368,2051.5,2051.3,0.97512]
[1741539268906,0.00732368,2051.5,2051.1,0.00732368]
[1741539269108,4.19021368,2051.5,2051.1,0.00732368]
[1741539269304,3.21512368,2051.5,2051.2,0.97519]
[1741539269501,0.00732368,2051.5,2051.2,0.97519]
[1741539269707,0.00732368,2051.5,2051.1,0.00732368]
[1741539270203,3.21512368,2051.5,2051.1,0.00732368]
[1741539270404,3.21512368,2051.5,2051.4,0.97511]
[1741539270599,3.21512368,2051.5,2051.3,0.97515]
[1741539270804,3.21512368,2051.5,2051.1,0.00732368]
[1741539271206,3.21512368,2051.5,2050.0,7.4408]
[1741539271207,3.2078,2051.2,2050.1,29.3518]
[1741539271402,0.97563,2050.4,2050.1,26.144]
[1741539271603,0.97569,2050.2,2050.1,21.882]
[1741539272002,3.2078,2050.9,2050.1,21.882]
[1741539272299,10.4634,2051.8,2050.2,2.43922]
[1741539272300,0.9753,2051.1,2050.2,2.43922]
[1741539272508,0.9753,2051.1,2050.1,21.882]
[1741539272509,0.00732368,2050.7,2050.3,3.21512368]
[1741539272709,0.00732368,2050.7,2050.3,0.98294368]
[1741539272912,0.97559,2050.4,2050.3,0.00732368]
[1741539273315,3.2078,2050.5,2050.1,17.58076917]
[1741539273505,4.18349,2050.2,2050.1,17.58076917]
[1741539274115,3.2078,2050.2,2050.1,18.55649917]
[1741539274411,4.18349,2050.2,2050.1,17.58076917]
[1741539275513,3.2078,2050.6,2050.1,17.58076917]
[1741539275707,4.18346,2050.3,2050.1,17.58076917]
[1741539275910,3.2078,2050.3,2050.1,18.55647917]
[1741539276112,3.2078,2050.3,2050.1,17.58076917]
[1741539276314,4.18347,2050.3,2050.1,17.58076917]
[1741539276508,0.97569,2050.2,2050.1,17.58076917]
[1741539277215,0.00732368,2050.7,2050.1,17.58076917]
[1741539277216,3.21512368,2050.7,2050.1,17.58076917]
[1741539277613,3.21512368,2050.7,2050.6,0.97549]
[1741539277815,0.00732368,2050.7,2050.6,0.97549]
[1741539278317,0.00732368,2050.7,2050.6,4.97549]
[1741539278519,0.97528,2051.1,2050.3,2.439]
[1741539278721,3.2078,2051.1,2050.4,2.43898]
[1741539278920,10.49127173,2051.3,2050.5,3.2078]
[1741539279111,3.2078,2051.0,2050.5,3.2078]
[1741539279309,3.2078,2051.0,2050.1,14.61271406]
[1741539279521,0.97522,2051.2,2050.9,0.97533]
[1741539279717,0.00732368,2050.8,2050.4,2.43898]
[1741539279912,20.12469342,2051.9,2051.1,2.43815]
[1741539280118,0.97503,2051.6,2051.2,22.86317]
[1741539280312,3.2078,2051.6,2051.2,21.888]
[1741539280519,0.97509,2051.5,2051.2,21.888]
[1741539280720,3.2078,2051.6,2051.2,22.86321]
[1741539281023,3.21512368,2051.6,2051.2,21.888]
[1741539281218,0.97509,2051.5,2051.2,21.888]
[1741539281618,4.19017368,2051.6,2051.2,22.86321]
[1741539281811,3.21512368,2051.6,2051.3,0.97513]
[1741539282017,3.21512368,2051.6,2051.2,21.888]
[1741539282323,4.18296,2051.3,2051.2,21.888]
[1741539282522,3.2078,2051.3,2051.2,21.888]
[1741539283019,4.18296,2051.3,2051.2,20.8894]
[1741539283226,4.18296,2051.3,2050.4,0.98287368]
[1741539283227,2.43817,2051.1,2050.4,0.00732368]
[1741539283424,3.2078,2050.7,2050.4,0.00732368]
[1741539283625,3.2078,2051.3,2050.4,0.00732368]
[1741539283922,3.2078,2051.0,2050.4,0.00732368]
[1741539284122,0.97537,2050.9,2050.6,0.97547]
[1741539284420,3.2078,2050.7,2050.4,0.00732368]
[1741539284627,4.18325,2050.7,2050.4,0.98289368]
[1741539284819,3.2078,2050.7,2050.4,0.00732368]
[1741539285015,4.62272395,2050.6,2050.4,0.00732368]
[1741539285219,3.64720395,2050.6,2050.5,0.97554]
[1741539285622,8.48706294,2051.2,2051.1,0.97526]
[1741539286615,8.48706294,2051.2,2051.1,4.0]
[1741539286820,8.48706294,2051.2,2051.1,0.97526]
[1741539287020,9.46230294,2051.2,2050.9,0.97535]
[1741539287218,11.69486294,2051.2,2050.4,5.65402368]
[1741539287527,11.69486294,2051.2,2050.4,3.21512368]
[1741539287728,11.69486294,2051.2,2050.5,8.87983322]
[1741539287931,8.48706294,2051.2,2051.1,0.97526]
[1741539288622,3.2078,2051.5,2051.4,0.97511]
[1741539288823,0.00732368,2051.6,2051.5,0.97507]
[1741539289329,9.11800989,2052.0,2051.6,0.97502]
[1741539289534,9.11800989,2052.0,2051.9,0.97488]
[1741539289720,7.82200989,2052.0,2051.9,0.97488]
[1741539289922,3.2078,2052.6,2052.3,0.97469]
[1741539290120,3.2078,2052.6,2051.6,12.09667193]
[1741539290322,0.85712478,2052.9,2052.8,0.97445]
[1741539290626,16.10772174,2053.2,2052.8,21.884]
[1741539290627,0.00732368,2053.1,2052.8,21.884]
[1741539290827,0.00732368,2053.1,2053.0,0.97435]
[1741539291021,0.00732368,2053.1,2052.8,21.884]
[1741539291232,0.9744,2052.9,2052.8,21.884]
[1741539291430,0.00732368,2053.1,2051.9,3.2078]
[1741539291634,0.00732368,2053.1,2052.5,3.2078]
[1741539291635,0.97451,2052.7,2052.5,3.2078]
[1741539291828,0.00732368,2053.1,2052.0,21.884]
[1741539291829,0.97459,2052.5,2052.4,3.2078]
[1741539292127,3.2078,2052.5,2052.1,0.98207368]
[1741539292334,3.2078,2053.0,2052.2,0.97472]
[1741539292632,3.2078,2053.0,2052.5,3.2078]
[1741539293029,0.97454,2052.6,2052.4,3.2078]
[1741539293235,3.2078,2053.0,2052.4,3.2078]
[1741539293430,0.97454,2052.7,2052.4,3.2078]
[1741539293628,3.2078,2053.0,2052.4,3.2078]
[1741539294328,0.00732368,2053.1,2052.8,0.97442]
[1741539294534,0.00732368,2053.1,2052.8,0.97443]
[1741539294737,3.68e-06,2053.1,2053.0,3.2078]
[1741539294929,16.10772174,2054.2,2053.1,4.87134]
[1741539294930,19.31552174,2054.2,2053.1,4.87134]
[1741539295125,19.31552174,2054.2,2053.5,3.2078]
[1741539295326,0.97395,2053.9,2053.5,0.9741]
[1741539295536,3.2078,2054.0,2053.5,3.2078]
[1741539295836,3.2078,2054.3,2053.8,3.2078]
[1741539296036,4.18156,2054.3,2053.8,0.97397]
[1741539296239,3.2078,2054.3,2053.7,3.2078]
[1741539296540,3.2078,2054.3,2053.9,0.97391]
[1741539296732,3.2078,2054.3,2053.7,3.2078]
[1741539296936,3.2078,2054.3,2053.6,3.2078]
[1741539297136,16.10772174,2054.4,2054.0,3.2078]
[1741539297437,19.31552174,2054.4,2053.9,3.2078]
[1741539297833,19.31552174,2054.4,2054.3,4.18154]
[1741539297834,16.10772174,2054.4,2054.3,4.18154]
[1741539298231,16.10772174,2054.4,2054.0,31.5157934]
[1741539298537,16.10772174,2054.4,2054.3,0.97374]
[1741539298733,16.10772174,2054.4,2054.3,4.18154]
[1741539298935,16.10772174,2054.4,2054.3,0.97374]
[1741539299131,0.97347,2054.9,2054.5,0.97363]
[1741539299330,3.2078,2055.1,2054.3,3.2078]
[1741539299535,3.2078,2054.7,2054.2,3.2078]
[1741539299732,7.79,2056.3,2054.5,0.00730478]
[1741539299733,3.2078,2055.2,2054.5,0.00730478]
[1741539299934,3.2078,2056.1,2054.8,3.2078]
[1741539300238,3.2078,2055.5,2055.1,3.2078]
[1741539300545,3.2078,2055.5,2054.8,3.2078]
[1741539300735,3.2078,2055.9,2055.1,3.2078]
[1741539301035,3.2078,2055.9,2055.0,21.868]
[1741539301227,19.49172174,2056.5,2055.0,21.868]
[1741539301228,3.2078,2056.2,2055.3,3.2078]
[1741539301428,19.49172174,2056.5,2055.3,3.2078]
[1741539301429,19.31552174,2056.5,2055.4,3.2078]
[1741539301636,4.18096,2055.6,2055.3,0.00730478]
[1741539301844,3.2078,2055.6,2055.3,0.00730478]
[1741539302030,3.2078,2056.3,2055.3,3.21510478]
[1741539302537,0.97322,2055.4,2055.3,0.00730478]
[1741539302736,0.97322,2055.4,2053.7,4.18181]
[1741539302737,3.2078,2055.2,2053.7,4.18181]
[1741539302947,3.2078,2054.2,2053.5,0.97409]
[1741539303237,0.97412,2053.5,2053.4,21.859]
[1741539303450,3.2078,2053.5,2052.9,3.2078]
[1741539303632,0.97435,2053.0,2052.6,21.859]
[1741539303833,3.2078,2053.2,2052.6,21.859]
[1741539304441,0.00730314,2053.4,2053.3,0.97421]
[1741539304934,0.00730314,2053.4,2053.3,8.18201]
[1741539305140,3.2078,2053.8,2053.3,8.18201]
[1741539305141,3.2078,2053.8,2053.4,0.97413]
[1741539305338,3.2078,2053.8,2053.1,0.00730478]
[1741539305543,3.2078,2053.8,2053.4,3.2078]
[1741539305743,3.2078,2053.8,2053.1,3.21510478]
[1741539305944,3.2078,2054.1,2053.2,3.2078]
[1741539306147,3.2078,2054.1,2053.1,3.21510478]
[1741539306437,5.0302,2055.1,2053.1,3.21510478]
[1741539306438,3.2078,2053.3,2053.1,0.00730478]
[1741539306636,0.97426,2053.2,2053.1,0.00730478]
[1741539306837,0.97426,2053.2,2053.1,4.78e-06]
[1741539307044,4.97426,2053.2,2053.1,4.78e-06]
[1741539307237,4.97426,2053.2,2051.7,21.86]
[1741539307238,3.2078,2053.0,2051.7,21.86]
[1741539307432,3.2078,2052.3,2051.7,21.86]
[1741539307636,0.97492,2051.8,2051.7,21.86]
[1741539307844,3.2078,2052.5,2051.7,21.86]
[1741539308539,0.00730478,2052.3,2051.7,21.86]
[1741539308739,4.18263,2052.0,2051.9,0.00730478]
[1741539308934,0.98202478,2052.3,2051.9,0.00730478]
[1741539309141,0.00730478,2052.3,2052.2,0.97473]
[1741539309346,4.78e-06,2052.3,2052.2,22.83473]
[1741539309545,4.78e-06,2052.3,2052.2,30.04253]
[1741539310549,4.78e-06,2052.3,2052.2,25.0678]
[1741539310747,4.78e-06,2052.3,2052.2,26.04253]
[1741539311243,4.78e-06,2052.3,2052.2,30.04253]
[1741539313146,4.1819,2053.6,2053.1,0.97429]
[1741539313345,4.1819,2053.6,2052.8,3.2078]
[1741539313550,3.2078,2053.6,2052.8,3.2078]
[1741539313753,0.97418,2053.4,2052.5,3.2078]
[1741539313938,3.2078,2053.1,2052.5,3.2078]
[1741539314140,3.2078,2053.4,2052.5,3.2078]
[1741539314345,0.00730478,2053.0,2052.9,0.9744]
[1741539314744,3.2078,2054.3,2052.8,3.2078]
[1741539315039,6.369,2055.0,2053.8,0.97396]
[1741539315040,3.2078,2054.0,2053.8,0.97396]
[1741539315238,3.2078,2054.3,2053.3,21.861]
[1741539315454,3.2078,2054.3,2054.2,0.97379]
[1741539315747,3.2078,2054.6,2053.6,3.2078]
[1741539315943,3.2078,2054.2,2053.4,0.97416]
[1741539316143,3.2078,2054.2,2053.3,21.861]
[1741539316345,0.00730478,2054.3,2053.3,21.861]
[1741539316346,3.2078,2053.8,2053.3,21.861]
[1741539317048,3.2078,2053.8,2053.5,0.97409]
[1741539317254,4.18165,2054.1,2053.6,0.97403]
[1741539317546,3.2078,2054.1,2053.6,3.2078]
[1741539317844,5.64247,2054.1,2053.3,21.86830478]
[1741539318050,0.97405,2053.7,2053.3,22.84250478]
[1741539318247,0.97395,2053.9,2053.4,0.97412]
[1741539318551,3.2078,2054.1,2053.3,21.86830478]
[1741539318754,0.00730478,2054.3,2053.3,25.07610478]
[1741539319149,0.00730478,2054.3,2053.6,3.2078]
[1741539319351,0.97401,2053.8,2053.4,0.97413]
[1741539319643,3.21510478,2054.3,2053.6,3.2078]
[1741539319845,2.43447,2054.2,2053.3,25.07610478]
[1741539320045,0.97405,2053.7,2053.3,26.05029478]
[1741539320247,3.2078,2054.0,2053.3,25.07610478]
[1741539320650,3.21510478,2054.3,2053.3,25.07610478]
[1741539320945,0.00730478,2054.3,2053.8,3.2078]
[1741539321349,0.00730478,2054.3,2053.5,3.2078]
[1741539321551,0.00730478,2054.3,2054.0,0.97386]
[1741539321847,0.00730478,2054.3,2054.2,0.97379]
[1741539322255,7.59202,2055.0,2053.6,5.64297]
[1741539322551,3.2078,2054.6,2053.5,3.2078]
[1741539322855,3.2078,2054.9,2053.9,3.2078]
[1741539323151,3.2078,2054.9,2053.5,2.43519]
[1741539323152,3.2078,2054.6,2053.5,3.2078]
[1741539323348,3.2078,2054.3,2053.5,3.2078]
[1741539324050,8.25131,2054.9,2053.5,3.2078]
[1741539324051,0.97407,2053.6,2053.5,3.2078]
[1741539324348,3.2078,2054.0,2053.3,21.86830478]
[1741539324349,2.43483,2053.9,2053.3,21.86830478]
[1741539324548,3.2078,2054.0,2053.3,21.86830478]
[1741539324851,3.2078,2054.0,2053.4,0.97414]
[1741539325052,3.2078,2054.0,2053.3,21.86830478]
[1741539325343,3.2078,2054.3,2053.4,2.43542]
[1741539325550,0.9739,2054.0,2053.8,0.97395]
[1741539325744,0.9739,2054.0,2053.3,21.86830478]
[1741539325745,0.97416,2053.4,2053.3,21.86830478]
[1741539325958,0.97415,2053.5,2053.3,21.86830478]
[1741539326153,0.97416,2053.4,2053.3,21.86830478]
[1741539326947,8.25284,2054.3,2053.3,21.86830478]
[1741539326948,3.2078,2053.9,2053.3,21.86830478]
[1741539327349,3.384,2054.3,2053.3,21.86830478]
[1741539327350,3.2078,2054.2,2053.8,0.97397]
[1741539327549,0.97389,2054.0,2053.8,0.97397]
[1741539327842,3.2078,2054.2,2054.0,0.97384]
[1741539328048,3.2078,2054.2,2053.8,3.2078]
[1741539328347,3.2078,2054.2,2054.0,0.97388]
[1741539328547,3.2078,2054.2,2054.1,0.97383]
[1741539328749,3.2078,2054.5,2053.8,5.64264]
[1741539328946,3.2078,2054.5,2053.8,3.2078]
[1741539329150,0.97387,2054.1,2053.8,0.97395]
[1741539329351,0.97392,2054.0,2053.7,0.974]
[1741539329551,3.2078,2054.2,2053.5,2.4353]
[1741539329753,0.3794977,2054.4,2053.7,2.43506]
[1741539329959,0.3794977,2054.4,2054.0,3.2078]
[1741539330154,3.2078,2054.5,2054.0,3.2078]
[1741539330155,0.97376,2054.3,2054.0,0.97386]
[1741539330355,3.2078,2054.5,2053.7,3.2078]
[1741539330652,0.97375,2054.3,2054.0,0.97386]
[1741539330850,5.64233,2054.2,2053.3,21.86830478]
[1741539331055,0.97392,2054.0,2053.7,0.97401]
[1741539331257,3.2078,2054.2,2053.5,3.2078]
[1741539331459,3.2078,2054.5,2053.5,3.2078]
[1741539331646,5.64193,2054.5,2053.5,3.2078]
[1741539331958,0.97385,2054.1,2053.8,0.97395]
[1741539332158,0.97385,2054.1,2053.5,3.2078]
[1741539332159,0.38033767,2054.4,2053.5,3.2078]
[1741539332355,3.2078,2054.1,2053.5,3.2078]
[1741539332556,0.97388,2054.0,2053.7,0.97399]
[1741539332757,0.97389,2054.0,2053.7,0.97398]
[1741539332955,0.974,2053.8,2053.5,0.9741]
[1741539333257,3.2078,2054.1,2053.3,21.86830478]
[1741539333461,0.97395,2053.9,2053.6,0.97407]
[1741539333752,3.2078,2054.1,2053.3,21.86830478]
[1741539333959,3.2078,2054.4,2053.6,3.2078]
[1741539334160,0.9738,2054.2,2053.9,0.97389]
[1741539334451,0.97376,2054.3,2054.0,0.97386]
[1741539334759,3.2078,2054.4,2053.6,5.64293]
[1741539334959,3.2078,2054.4,2054.2,0.97377]
[1741539335154,3.2078,2054.4,2053.9,3.2078]
[1741539335355,3.2078,2054.4,2054.2,0.97375]
[1741539335553,3.2078,2054.8,2053.9,3.2078]
[1741539335857,5.64196,2054.5,2053.6,3.2078]
[1741539336051,0.9739,2054.0,2053.6,3.2078]
[1741539336254,3.2078,2054.5,2053.6,5.64291]
[1741539336451,0.97384,2054.1,2053.6,3.2078]
[1741539336661,0.97388,2054.0,2053.6,3.2078]
[1741539336856,0.97402,2053.7,2053.6,3.2078]
[1741539337060,0.97416,2053.4,2053.3,0.00730478]
[1741539337263,3.2078,2053.8,2053.3,0.00730478]
[1741539337760,3.2078,2053.8,2053.5,0.97408]
[1741539337951,0.97413,2053.5,2053.3,0.00730478]
[1741539338157,3.2078,2053.8,2053.3,0.00730478]
[1741539338353,0.97416,2053.4,2053.3,0.00730478]
[1741539339362,2.43554,2053.3,2052.7,21.854]
[1741539339559,3.2078,2053.1,2052.7,21.854]
[1741539339761,2.43612,2052.9,2052.2,3.2078]
[1741539340065,0.9748,2052.1,2051.8,18.30709302]
[1741539340361,0.97471,2052.3,2052.0,0.97479]
[1741539340561,0.97471,2052.3,2051.8,18.30709302]
[1741539340562,0.00730478,2052.2,2051.8,18.30709302]
[1741539340762,3.21510478,2052.2,2051.8,18.30709302]
[1741539340970,0.00730478,2052.2,2052.1,0.97478]
[1741539341664,4.78e-06,2052.2,2052.1,4.18258]
[1741539342363,4.78e-06,2052.2,2052.1,8.18258]
[1741539342565,0.97428,2053.2,2052.8,0.9744]
[1741539342868,3.2078,2053.2,2052.5,3.2078]
[1741539343065,3.2078,2053.2,2052.9,0.97439]
[1741539343362,3.2078,2053.2,2052.5,3.2078]
[1741539343561,4.18194,2053.5,2053.1,0.97431]
[1741539343768,3.2078,2053.5,2052.8,3.2078]
[1741539343957,5.2174,2053.7,2053.1,3.2078]
[1741539344158,5.2174,2053.7,2053.1,4.18209]
[1741539344159,0.97415,2053.5,2053.1,4.18209]
[1741539344354,5.2174,2053.7,2053.1,3.2078]
[1741539344559,3.2078,2053.8,2052.8,3.2078]
[1741539345156,3.2078,2054.1,2053.7,0.97402]
[1741539345359,4.18164,2054.1,2053.4,3.2078]
[1741539345562,3.2078,2054.1,2053.4,3.2078]
[1741539345769,3.2078,2054.1,2053.5,0.00730478]
[1741539346165,0.97399,2053.8,2053.5,0.00730478]
[1741539346466,3.2078,2054.1,2053.5,0.00730478]
[1741539346665,2.43506,2053.7,2052.7,4.18228]
[1741539346862,0.9745,2052.7,2052.4,4.18242]
[1741539347063,0.9745,2052.7,2052.4,3.2078]
[1741539347372,0.9747,2052.3,2052.1,3.2078]
[1741539347572,3.2078,2052.3,2051.8,25.0658]
[1741539347762,0.97488,2051.9,2051.8,21.858]
[1741539347961,3.2078,2052.3,2051.8,21.858]
[1741539347962,3.2078,2052.0,2051.8,21.86530478]
[1741539348161,0.97488,2051.9,2051.8,21.86530478]
[1741539348359,3.2078,2052.0,2051.8,21.86530478]
[1741539348570,0.97488,2051.9,2051.8,21.86530478]
[1741539349065,4.0,2051.9,2051.1,3.2078]
[1741539349262,3.2078,2051.4,2051.0,21.858]
[1741539349463,4.18296,2051.4,2051.0,22.83327]
[1741539349662,3.2078,2051.4,2051.0,22.83327]
[1741539349877,3.2078,2051.7,2051.1,0.97522]
[1741539350166,2.43756,2051.6,2050.8,21.70661302]
[1741539350364,3.2078,2050.9,2049.7,25.50050415]
[1741539350666,0.97578,2050.0,2049.7,25.50050415]
[1741539350868,0.97588,2049.8,2049.7,25.34024589]
[1741539351078,3.2078,2050.1,2049.7,25.06504149]
[1741539351370,0.97588,2049.8,2049.7,0.00730478]
[1741539351571,4.18368,2049.8,2049.7,0.00730478]
[1741539351867,2.43982,2049.7,2048.8,3.2078]
[1741539352162,3.2078,2049.6,2048.9,3.2078]
[1741539352366,3.2078,2049.6,2049.0,0.97625]
[1741539352565,3.2078,2049.3,2048.9,3.2078]
[1741539352765,3.2078,2049.3,2048.5,25.05773671]
[1741539352969,0.97641,2048.7,2048.5,25.05773671]
[1741539353169,3.2078,2048.9,2048.5,25.05773671]
[1741539353364,3.21510478,2049.3,2048.7,0.00730478]
[1741539353571,4.19124478,2049.3,2048.8,4.18414]
[1741539353769,4.19124478,2049.3,2048.7,0.00730478]
[1741539353770,3.21510478,2049.3,2048.7,0.00730478]
[1741539354075,0.97635,2048.8,2048.7,0.00730478]
[1741539354266,0.97635,2048.8,2048.7,4.78e-06]
[1741539354463,4.0,2048.8,2048.5,25.05773671]
[1741539354768,3.2078,2048.7,2048.5,25.05773671]
[1741539355575,3.2078,2048.7,2048.4,0.00730478]
[1741539355872,3.2078,2049.0,2048.5,0.97649]
[1741539356063,3.2078,2049.9,2049.2,0.97616]
[1741539356476,0.97594,2049.7,2048.9,3.2078]
[1741539356678,3.2078,2049.6,2048.6,5.671]
[1741539356972,3.2078,2049.6,2048.9,0.97626]
[1741539357173,3.2078,2049.6,2048.8,3.2078]
[1741539357669,5.664,2049.9,2049.2,0.97616]
[1741539357865,4.78e-06,2049.3,2049.2,0.97616]
[1741539358071,5.39218078,2050.1,2049.2,10.43994501]
[1741539358266,5.39218078,2050.1,2050.0,4.18358]
[1741539358478,7.18957438,2050.3,2050.0,3.2078]
[1741539358680,7.18957438,2050.3,2049.9,21.891]
[1741539358876,0.97578,2050.0,2049.9,21.891]
[1741539359072,7.18957438,2050.3,2049.5,0.976]
[1741539359281,0.97581,2050.0,2049.7,0.00730478]
[1741539359484,0.00730478,2050.2,2049.7,0.00730478]
[1741539359775,0.97588,2049.8,2049.7,0.00730478]
[1741539359980,3.2078,2050.1,2049.7,0.00730478]
[1741539360176,0.97588,2049.8,2049.7,0.00730478]
[1741539360577,3.2078,2050.1,2049.7,0.00730478]
[1741539360883,0.97585,2049.9,2049.7,0.00730478]
[1741539361076,3.2078,2050.1,2050.0,0.97578]
[1741539361383,0.00730478,2050.2,2049.7,0.00730478]
[1741539361585,3.2078,2050.1,2049.7,0.00730478]